bitfinex/quotes_SOLUSD_20251120
["timestamp","ask_amount","ask_price","bid_price","bid_amount"]
[1763647800789,2.49,139.31,139.2,0.72]
[1763647800790,10.85551307,139.28,139.2,0.72]
[1763647801078,10.85551307,139.28,139.23,10.85551307]
[1763647801279,10.85551307,139.27,139.21,0.72]
[1763647801483,0.71,139.3,139.21,0.72]
[1763647801686,11.56551307,139.3,139.25,10.85551307]
[1763647801867,10.85551307,139.34,139.28,10.85551307]
[1763647802186,0.71,139.35,139.29,10.85551307]
[1763647802187,1.78,139.33,139.29,10.85551307]
[1763647802386,1.78,139.33,139.31,10.85551307]
[1763647802693,1.78,139.33,139.3,10.85551307]
[1763647803767,1.78,139.33,139.31,10.85551307]
[1763647804165,11.56551307,139.32,139.22,18.84096]
[1763647804367,9.78882769,139.29,139.22,11.57551307]
[1763647804584,1.78,139.28,139.24,10.85551307]
[1763647804783,1.78,139.28,139.16,36.08481038]
[1763647804784,1.78,139.28,139.14,53.77999999]
[1763647804976,1.78,139.28,139.25,10.85551307]
[1763647805163,1.78,139.28,139.14,8.96692505]
[1763647805164,0.71,139.27,139.2,0.72]
[1763647805365,12.63551307,139.28,139.23,10.85551307]
[1763647805580,28.61978769,139.3,139.25,10.85551307]
[1763647805581,1.78,139.27,139.25,10.85551307]
[1763647805971,1.78,139.27,139.23,10.85551307]
[1763647806176,1.78,139.27,139.2,0.72]
[1763647806376,1.78,139.27,139.21,0.72]
[1763647806991,1.78,139.27,139.23,10.85551307]
[1763647807368,1.78,139.27,139.26,10.85551307]
[1763647807565,1.78,139.33,139.26,11.57551307]
[1763647807792,12.63551307,139.33,139.26,0.72]
[1763647807996,1.78,139.33,139.29,10.85551307]
[1763647808383,1.78,139.33,139.3,10.85551307]
[1763647808579,1.78,139.33,139.26,0.72]
[1763647808773,1.78,139.33,139.31,10.85551307]
[1763647808978,37.86242065,139.43,139.27,0.72]
[1763647808979,0.71,139.42,139.32,11.57551307]
[1763647809274,1.78,139.41,139.37,10.85551307]
[1763647809474,12.63551307,139.41,139.36,10.85551307]
[1763647809671,13.34551307,139.41,139.35,10.85551307]
[1763647809875,18.12096,139.37,139.3,10.85551307]
[1763647810096,12.63551307,139.36,139.31,10.85551307]
[1763647810396,11.56551307,139.35,139.25,0.72]
[1763647810604,10.85551307,139.31,139.22,0.72]
[1763647810767,1.78,139.3,139.27,12.58857815]
[1763647811096,1.78,139.3,139.25,12.58857815]
[1763647811097,0.71,139.29,139.25,12.58857815]
[1763647811281,1.78,139.3,139.25,12.58857815]
[1763647811466,2.49,139.3,139.25,12.58857815]
[1763647811668,2.49,139.3,139.26,12.58857815]
[1763647811870,0.71,139.35,139.29,12.58857815]
[1763647812066,1.78,139.34,139.3,12.58857815]
[1763647812498,0.71,139.38,139.32,12.58857815]
[1763647812680,1.78,139.34,139.33,12.58857815]
[1763647812996,1.78,139.34,139.31,12.58857815]
[1763647813198,1.78,139.34,139.3,12.58857815]
[1763647813493,1.78,139.34,139.31,12.58857815]
[1763647813705,13.29857815,139.33,139.24,0.72]
[1763647813881,12.58857815,139.25,139.08,57.19010641]
[1763647814070,17.94558897,139.31,139.16,12.58857815]
[1763647814071,1.78,139.24,139.16,12.58857815]
[1763647814275,18.12096,139.26,139.18,12.58857815]
[1763647814276,14.38857815,139.23,139.18,12.58857815]
[1763647814492,1.8,139.23,139.18,12.58857815]
[1763647814690,0.71,139.22,139.13,0.72]
[1763647814883,1.8,139.23,139.19,12.58857815]
[1763647815092,1.8,139.24,139.12,1.99999999]
[1763647815297,1.8,139.24,139.14,22.37740584]
[1763647815495,1.8,139.24,139.23,12.58857815]
[1763647815694,1.8,139.28,139.23,12.58857815]
[1763647816000,1.8,139.28,139.2,0.72]
[1763647816212,0.71,139.34,139.27,12.58857815]
[1763647816419,12.58857815,139.29,139.18,7.90493302]
[1763647816599,12.58857815,139.25,139.13,0.72]
[1763647816787,9.78882769,139.26,139.16,12.58857815]
[1763647816989,12.58857815,139.17,139.12,12.58857815]
[1763647817183,1.8,139.16,139.12,0.72]
[1763647817383,50.0,139.37,139.08,7.19010641]
[1763647817384,9.78882769,139.24,139.15,12.58857815]
[1763647817606,0.71,139.24,139.2,12.58857815]
[1763647817778,1.8,139.23,139.2,7.18388607]
[1763647817977,1.8,139.26,139.22,12.58857815]
[1763647818320,4.69495923,139.25,139.21,0.72]
[1763647818492,1.8,139.28,139.21,0.72]
[1763647818679,4.69766152,139.27,139.21,0.72]
[1763647818879,1.8,139.29,139.21,0.72]
[1763647819406,1.8,139.3,139.21,0.72]
[1763647819779,1.8,139.3,139.22,25.14006607]
[1763647819986,1.8,139.3,139.28,12.58857815]
[1763647820724,0.71,139.36,139.23,18.12096]
[1763647820878,0.71,139.36,139.22,25.14006607]
[1763647820879,13.17338822,139.36,139.24,0.67]
[1763647821079,5.79316071,139.42,139.3,12.46338822]
[1763647821080,4.70416757,139.35,139.3,12.46338822]
[1763647821307,0.71,139.42,139.34,12.46338822]
[1763647821504,0.71,139.42,139.35,12.46338822]
[1763647821505,12.46338822,139.4,139.35,12.46338822]
[1763647821802,7.17772035,139.32,139.18,7.85494036]
[1763647821976,12.46338822,139.28,139.23,12.46338822]
[1763647822182,2.51,139.31,139.2,12.46338822]
[1763647822386,12.46338822,139.33,139.27,12.46338822]
[1763647822593,1.8,139.32,139.29,12.46338822]
[1763647822803,12.46338822,139.3,139.25,12.46338822]
[1763647823211,0.71,139.31,139.26,12.46338822]
[1763647823212,12.46338822,139.31,139.26,12.46338822]
[1763647823500,5.42893034,139.3,139.18,25.14729127]
[1763647823705,18.83096,139.34,139.28,12.46338822]
[1763647823923,18.83096,139.34,139.22,16.97170371]
[1763647823924,6.51840065,139.33,139.22,16.97170371]
[1763647824130,4.71840065,139.32,139.25,18.12096]
[1763647824409,1.8,139.36,139.26,18.12096]
[1763647824584,1.8,139.36,139.27,9.78882769]
[1763647824790,1.8,139.36,139.27,0.67]
[1763647825117,1.8,139.36,139.28,0.67]
[1763647825336,0.71,139.42,139.32,18.12096]
[1763647825620,1.8,139.41,139.38,12.46338822]
[1763647825849,1.8,139.41,139.37,12.46338822]
[1763647825979,1.8,139.41,139.33,18.61217279]
[1763647826315,1.8,139.41,139.38,12.46338822]
[1763647826477,1.8,139.41,139.34,25.11841538]
[1763647826478,1.8,139.41,139.37,12.46338822]
[1763647826682,9.68311617,139.41,139.36,12.46338822]
[1763647827000,2.51,139.41,139.37,12.46338822]
[1763647827187,4.72163453,139.4,139.33,0.67]
[1763647827395,4.72163453,139.4,139.37,12.46338822]
[1763647827589,1.8,139.41,139.37,12.46338822]
[1763647828232,1.8,139.41,139.4,12.46338822]
[1763647828386,13.17338822,139.49,139.4,12.46338822]
[1763647828580,13.17338822,139.49,139.38,0.67]
[1763647828581,1.8,139.45,139.44,12.46338822]
[1763647829503,1.8,139.45,139.44,13.16338822]
[1763647829961,1.8,139.45,139.44,20.33493153]
[1763647830312,1.8,139.49,139.44,20.33493153]
[1763647830549,1.8,139.49,139.48,12.46338822]
[1763647830750,1.8,139.49,139.45,12.46338822]
[1763647831028,1.8,139.49,139.46,12.46338822]
[1763647831232,1.8,139.49,139.45,12.46338822]
[1763647831438,13.18338822,139.48,139.41,0.7]
[1763647831612,0.72,139.48,139.43,12.46338822]
[1763647831809,5.43978844,139.48,139.41,0.7]
[1763647832034,1.8,139.49,139.41,0.7]
[1763647832235,7.16698536,139.53,139.47,12.46338822]
[1763647832437,7.16698536,139.53,139.48,12.46338822]
[1763647832438,14.26338822,139.53,139.48,12.46338822]
[1763647832628,1.8,139.53,139.49,12.46338822]
[1763647832948,1.8,139.53,139.42,0.7]
[1763647833145,2.52,139.53,139.49,12.46338822]
[1763647833373,1.8,139.53,139.5,12.46338822]
[1763647833855,1.8,139.53,139.42,0.7]
[1763647833856,13.18338822,139.52,139.48,12.46338822]
[1763647834149,1.8,139.53,139.49,12.46338822]
[1763647834354,1.8,139.53,139.51,12.46338822]
[1763647834645,0.72,139.57,139.51,12.46338822]
[1763647834818,17.44,139.61,139.51,12.46338822]
[1763647834819,14.98338822,139.56,139.51,12.46338822]
[1763647835220,1.8,139.56,139.54,12.46338822]
[1763647835535,1.8,139.56,139.45,9.78882769]
[1763647835747,1.8,139.56,139.54,12.46338822]
[1763647836048,1.8,139.56,139.48,0.7]
[1763647836049,1.8,139.56,139.53,12.46338822]
[1763647836220,0.72,139.55,139.48,0.7]
[1763647836422,1.8,139.54,139.45,21.56]
[1763647836623,18.12096,139.51,139.37,1.8]
[1763647836818,18.12096,139.51,139.43,12.46338822]
[1763647837026,12.46338822,139.49,139.44,12.46338822]
[1763647837230,1.8,139.48,139.45,12.46338822]
[1763647837466,12.46338822,139.47,139.38,0.7]
[1763647837662,12.46338822,139.47,139.42,12.46338822]
[1763647837868,13.18338822,139.47,139.42,12.46338822]
[1763647838173,1.8,139.47,139.4,12.46338822]
[1763647838324,1.8,139.47,139.35,1.8]
[1763647838325,13.18338822,139.46,139.41,12.46338822]
[1763647838673,0.72,139.46,139.41,12.46338822]
[1763647838978,13.18338822,139.46,139.41,12.46338822]
[1763647839269,12.46338822,139.45,139.4,12.46338822]
[1763647839630,0.72,139.44,139.4,12.46338822]
[1763647839847,0.72,139.44,139.33,0.7]
[1763647839848,12.46338822,139.42,139.33,0.7]
[1763647840056,12.46338822,139.4,139.35,12.46338822]
[1763647840233,12.46338822,139.4,139.28,1.8]
[1763647840234,1.8,139.39,139.29,18.12096]
[1763647840551,12.46338822,139.35,139.26,0.7]
[1763647840727,12.46338822,139.28,139.21,0.7]
[1763647841043,1.8,139.27,139.26,12.46338822]
[1763647841247,18.12096,139.33,139.26,12.46338822]
[1763647841563,14.26338822,139.32,139.27,12.46338822]
[1763647841768,12.46338822,139.3,139.25,12.46338822]
[1763647842054,0.72,139.29,139.21,0.7]
[1763647842274,1.8,139.28,139.26,12.46338822]
[1763647842443,1.8,139.27,139.26,12.46338822]
[1763647842641,1.99999999,139.41,139.26,12.46338822]
[1763647842844,12.46338822,139.32,139.27,12.46338822]
[1763647843065,12.46338822,139.29,139.21,7.18319955]
[1763647843399,14.26338822,139.31,139.26,12.46338822]
[1763647843540,1.8,139.31,139.27,12.46338822]
[1763647843736,25.10940526,139.39,139.29,12.46338822]
[1763647843944,12.46338822,139.33,139.28,12.46338822]
[1763647844241,12.46338822,139.33,139.2,12.46338822]
[1763647844242,1.8,139.32,139.23,25.83818567]
[1763647844460,31.30434822,139.34,139.3,12.46338822]
[1763647844673,1.8,139.33,139.24,0.7]
[1763647844872,14.26338822,139.33,139.28,12.46338822]
[1763647845066,0.72,139.32,139.27,12.46338822]
[1763647845378,0.72,139.37,139.31,12.46338822]
[1763647845672,0.72,139.37,139.33,12.46338822]
[1763647845884,1.8,139.36,139.35,12.46338822]
[1763647846650,12.46338822,139.42,139.35,20.33956331]
[1763647846882,1.8,139.41,139.38,12.46338822]
[1763647847474,1.8,139.41,139.35,0.7]
[1763647847686,0.72,139.4,139.25,1.8]
[1763647847853,12.46338822,139.35,139.3,12.46338822]
[1763647848057,1.8,139.34,139.3,12.46338822]
[1763647848378,1.8,139.34,139.31,12.46338822]
[1763647848882,1.8,139.34,139.31,12.58193574]
[1763647849085,1.8,139.34,139.28,0.7]
[1763647849292,1.8,139.34,139.3,12.58193574]
[1763647849774,2.52,139.34,139.3,12.58193574]
[1763647850193,2.52,139.34,139.28,0.7]
[1763647850194,12.58193574,139.32,139.24,0.66]
[1763647850355,1.8,139.34,139.29,12.58193574]
[1763647850554,2.47,139.34,139.3,12.58193574]
[1763647851159,1.8,139.34,139.3,0.66]
[1763647851357,1.8,139.34,139.31,12.58193574]
[1763647851597,1.8,139.34,139.32,12.58193574]
[1763647851757,1.8,139.34,139.33,12.58193574]
[1763647852359,1.8,139.34,139.31,7.17783951]
[1763647852554,1.8,139.34,139.33,12.58193574]
[1763647853961,1.8,139.34,139.29,0.66]
[1763647854181,1.8,139.34,139.32,12.58193574]
[1763647854383,1.8,139.34,139.33,12.58193574]
[1763647855266,1.8,139.34,139.29,0.66]
[1763647855467,1.8,139.34,139.32,12.58193574]
[1763647855865,1.8,139.34,139.33,12.58193574]
[1763647858073,1.8,139.34,139.29,0.66]
[1763647858267,1.8,139.34,139.33,12.58193574]
[1763647859182,1.8,139.34,139.33,13.24193574]
[1763647859915,0.2,139.48,139.36,18.12096]
[1763647860192,0.2,139.48,139.33,27.29965625]
[1763647860193,1e-08,139.48,139.47,12.58193574]
[1763647860420,1e-08,139.48,139.47,63.12921863]
[1763647860706,2.02,139.59,139.56,12.58193574]
[1763647860865,2.02,139.59,139.47,9.78882769]
[1763647861063,2.02,139.59,139.5,22.37076343]
[1763647861267,0.2,139.59,139.58,12.58193574]
[1763647861493,0.87,139.59,139.48,18.78096]
[1763647861792,0.2,139.59,139.58,12.58193574]
[1763647862294,0.2,139.59,139.54,18.12096]
[1763647862295,0.2,139.59,139.57,7.16457628]
[1763647862593,0.2,139.59,139.58,12.58193574]
[1763647862794,0.2,139.59,139.58,13.24193574]
[1763647862975,0.2,139.61,139.6,18.12096]
[1763647863186,0.2,139.61,139.6,30.70289574]
[1763647863488,0.2,139.61,139.6,18.65096]
[1763647863670,0.2,139.61,139.6,30.70289574]
[1763647864069,0.2,139.61,139.6,31.23289574]
[1763647864273,0.2,139.61,139.6,48.18504721]
[1763647864466,1.84,139.68,139.61,9.78882769]
[1763647864690,1.84,139.68,139.6,0.53]
[1763647865004,1.84,139.68,139.67,12.58193574]
[1763647865213,1.84,139.68,139.57,1.99999999]
[1763647865214,0.67,139.67,139.51,17.91982633]
[1763647865370,0.67,139.67,139.61,12.58193574]
[1763647865698,0.67,139.67,139.66,12.58193574]
[1763647865869,0.67,139.67,139.56,9.78882769]
[1763647866078,0.67,139.67,139.62,12.58193574]
[1763647866281,1.84,139.67,139.65,12.58193574]
[1763647866600,0.58,139.66,139.53,9.78882769]
[1763647866800,1.84,139.67,139.56,18.12096]
[1763647866975,1.84,139.67,139.65,12.58193574]
[1763647867190,0.58,139.66,139.64,12.58193574]
[1763647867381,9.00004801,139.67,139.65,12.58193574]
[1763647867582,9.00004801,139.67,139.63,12.58193574]
[1763647867803,13.16193574,139.66,139.53,0.66]
[1763647867997,0.58,139.65,139.53,18.78096]
[1763647868199,13.16193574,139.65,139.59,12.58193574]
[1763647868416,37.64818224,139.63,139.56,12.58193574]
[1763647868708,37.64818224,139.63,139.57,12.58193574]
[1763647868886,37.64818224,139.63,139.51,0.66]
[1763647868887,0.58,139.62,139.51,0.66]
[1763647869089,0.58,139.62,139.52,12.58193574]
[1763647869090,9.78882769,139.59,139.52,12.58193574]
[1763647869291,18.12096,139.6,139.46,0.66]
[1763647869491,2.42,139.59,139.55,12.58193574]
[1763647869923,1.84,139.59,139.58,12.58193574]
[1763647870128,1.84,139.59,139.57,12.58193574]
[1763647870414,1.84,139.59,139.52,0.66]
[1763647870592,1.84,139.59,139.58,12.58193574]
[1763647871129,0.58,139.62,139.58,12.58193574]
[1763647871422,7.74237026,139.62,139.59,12.58193574]
[1763647871630,7.74237026,139.62,139.52,7.16738118]
[1763647871802,7.74237026,139.62,139.47,9.78882769]
[1763647871803,0.58,139.61,139.59,12.58193574]
[1763647872007,18.12096,139.59,139.46,0.66]
[1763647872193,9.78882769,139.55,139.43,0.66]
[1763647872394,7.16743119,139.52,139.47,12.58193574]
[1763647872616,1.82,139.51,139.47,12.58193574]
[1763647872800,1.82,139.51,139.5,10.81488922]
[1763647873123,1.82,139.51,139.49,10.81488922]
[1763647873124,2.4,139.51,139.49,10.81488922]
[1763647873445,1.82,139.51,139.5,10.81488922]
[1763647873611,1.82,139.52,139.5,10.81488922]
[1763647873794,1.82,139.52,139.46,0.66]
[1763647873795,1.82,139.52,139.51,10.81488922]
[1763647873990,1.82,139.52,139.43,0.66]
[1763647874224,2.4,139.52,139.5,10.81488922]
[1763647874515,2.4,139.52,139.43,0.66]
[1763647874516,1.82,139.52,139.44,18.12096]
[1763647874719,1.82,139.52,139.51,10.81488922]
[1763647874918,1.82,139.52,139.49,10.81488922]
[1763647875118,11.39488922,139.51,139.4,0.66]
[1763647875421,0.58,139.51,139.4,0.66]
[1763647875626,45.02710059,139.52,139.4,0.66]
[1763647875627,0.58,139.5,139.46,10.81488922]
[1763647875919,0.58,139.5,139.47,10.81488922]
[1763647876110,2.4,139.52,139.48,10.81488922]
[1763647876291,2.4,139.52,139.41,0.66]
[1763647876292,0.58,139.51,139.41,0.66]
[1763647876494,0.58,139.51,139.48,10.81488922]
[1763647876706,18.70096,139.55,139.5,10.81488922]
[1763647876923,7.74641116,139.54,139.49,10.81488922]
[1763647877100,1.82,139.53,139.48,10.81488922]
[1763647877299,2.4,139.53,139.49,10.81488922]
[1763647877706,0.58,139.52,139.49,10.81488922]
[1763647878396,16.95677264,139.51,139.41,18.12096]
[1763647878591,16.95677264,139.51,139.37,17.9376022]
[1763647878592,7.16794495,139.51,139.47,10.81488922]
[1763647878830,7.16794495,139.51,139.49,10.81488922]
[1763647878831,0.58,139.51,139.49,10.81488922]
[1763647879005,0.58,139.51,139.42,0.66]
[1763647879006,1.82,139.5,139.44,0.66]
[1763647879198,0.58,139.56,139.44,0.66]
[1763647879394,0.58,139.56,139.41,18.12096]
[1763647879395,9.78882769,139.54,139.41,18.78096]
[1763647879600,0.58,139.53,139.42,0.66]
[1763647879801,9.78882769,139.52,139.42,0.66]
[1763647880099,9.78882769,139.52,139.47,10.81488922]
[1763647880309,0.58,139.51,139.47,10.81488922]
[1763647880522,8.98863934,139.5,139.48,10.81488922]
[1763647880722,1.82,139.5,139.48,10.81488922]
[1763647880904,2.4,139.5,139.48,10.81488922]
[1763647881220,1.82,139.5,139.43,7.17156499]
[1763647881426,10.36882769,139.49,139.38,0.68]
[1763647881601,0.58,139.52,139.48,10.81488922]
[1763647881803,1.82,139.51,139.48,10.81488922]
[1763647882002,1.82,139.51,139.49,10.81488922]
[1763647882303,1.82,139.51,139.48,10.81488922]
[1763647882505,2.4,139.51,139.44,7.17144017]
[1763647882720,9.56803165,139.51,139.48,10.81488922]
[1763647882917,9.56803165,139.51,139.44,0.68]
[1763647883099,9.56803165,139.51,139.49,10.81488922]
[1763647883300,9.56803165,139.51,139.48,10.81488922]
[1763647883606,9.56803165,139.51,139.43,7.17195661]
[1763647883607,9.56803165,139.51,139.49,10.81488922]
[1763647884204,9.56803165,139.51,139.48,10.81488922]
[1763647884406,0.58,139.5,139.48,10.81488922]
[1763647884940,7.16752228,139.52,139.49,10.81488922]
[1763647885233,1.82,139.49,139.44,0.68]
[1763647886212,7.74752228,139.52,139.48,10.81488922]
[1763647886539,8.98813949,139.51,139.49,10.81488922]
[1763647886714,8.98799008,139.51,139.44,0.68]
[1763647886904,1.82,139.51,139.49,10.81488922]
[1763647887236,7.16604011,139.55,139.5,10.81488922]
[1763647887447,0.58,139.6,139.54,10.81488922]
[1763647887606,1.82,139.57,139.52,0.68]
[1763647888125,1.82,139.57,139.5,10.81488922]
[1763647888126,1.82,139.57,139.53,0.68]
[1763647888522,1.82,139.57,139.53,7.84659695]
[1763647888733,1.82,139.57,139.56,10.81488922]
[1763647890421,1.82,139.57,139.5,28.93584922]
[1763647890610,1.82,139.57,139.54,10.81488922]
[1763647890933,0.58,139.56,139.54,10.81488922]
[1763647891100,0.58,139.56,139.5,0.72]
[1763647891101,0.58,139.56,139.53,10.81488922]
[1763647891301,1.82,139.57,139.54,10.81488922]
[1763647891514,1.82,139.57,139.55,10.81488922]
[1763647891733,8.98514092,139.57,139.55,10.81488922]
[1763647891912,8.98514092,139.57,139.54,10.81488922]
[1763647892113,2.4,139.57,139.55,10.81488922]
[1763647892434,9.56493835,139.57,139.55,10.81488922]
[1763647892804,9.56493835,139.57,139.55,7.13529543]
[1763647893006,0.58,139.56,139.48,7.88923554]
[1763647893205,0.58,139.56,139.54,7.13529543]
[1763647893407,1.82,139.57,139.55,7.13529543]
[1763647893625,9.56496142,139.57,139.54,7.13529543]
[1763647893907,1.82,139.57,139.56,7.13529543]
[1763647894934,1.82,139.57,139.54,0.72]
[1763647895227,1.82,139.57,139.56,7.13529543]
[1763647896114,1.82,139.57,139.54,0.72]
[1763647896315,1.82,139.57,139.56,7.13529543]
[1763647898228,1.82,139.57,139.56,7.85529543]
[1763647898758,0.58,139.64,139.56,7.85529543]
[1763647899053,0.58,139.64,139.61,7.13529543]
[1763647899054,1.82,139.63,139.61,7.13529543]
[1763647899428,2.4,139.63,139.61,7.13529543]
[1763647899816,7.16036419,139.66,139.62,7.13529543]
[1763647900056,5.74393492,139.73,139.56,7.16530457]
[1763647900057,7.15904604,139.69,139.65,7.13529543]
[1763647900229,7.15904604,139.69,139.6,7.13529543]
[1763647900430,1.82,139.68,139.67,7.13529543]
[1763647900751,1.82,139.68,139.61,0.72]
[1763647900752,8.97959487,139.68,139.66,7.13529543]
[1763647901127,1.82,139.68,139.66,7.13529543]
[1763647901325,8.9794942,139.68,139.66,7.13529543]
[1763647901653,8.97922107,139.68,139.67,7.13529543]
[1763647901833,1.82,139.68,139.67,7.13529543]
[1763647902150,1.82,139.68,139.63,0.72]
[1763647902354,1.82,139.68,139.67,7.13529543]
[1763647902526,0.58,139.67,139.59,0.72]
[1763647902728,25.06086209,139.66,139.59,0.72]
[1763647902933,25.06086209,139.66,139.61,7.13529543]
[1763647903134,0.58,139.65,139.6,7.13529543]
[1763647903469,0.58,139.65,139.52,7.13529543]
[1763647903470,7.13529543,139.62,139.57,7.13529543]
[1763647903645,0.58,139.61,139.57,7.13529543]
[1763647903843,0.58,139.61,139.52,0.72]
[1763647903844,1.8,139.6,139.52,0.72]
[1763647904153,1.8,139.6,139.57,7.13529543]
[1763647904562,1.8,139.6,139.58,7.13529543]
[1763647904766,9.78882769,139.63,139.59,7.13529543]
[1763647904970,1.8,139.62,139.61,7.13529543]
[1763647905140,1.8,139.62,139.57,0.72]
[1763647905467,1.8,139.62,139.61,7.13529543]
[1763647907139,2.19999999,139.74,139.61,7.13529543]
[1763647907366,2.19999999,139.74,139.56,18.12096]
[1763647907367,7.15870856,139.69,139.66,7.13529543]
[1763647907552,1.8,139.68,139.65,7.13529543]
[1763647907859,1.8,139.68,139.66,7.13529543]
[1763647908753,8.95926094,139.68,139.66,7.13529543]
[1763647909142,8.95926094,139.68,139.65,7.13529543]
[1763647909569,8.95926094,139.68,139.63,0.72]
[1763647909757,8.95926094,139.68,139.66,7.13529543]
[1763647910266,26.85731363,139.68,139.65,7.13529543]
[1763647910461,26.85731363,139.68,139.64,7.13529543]
[1763647910667,7.16024631,139.66,139.64,7.13529543]
[1763647910870,1.8,139.65,139.64,7.13529543]
[1763647912444,1.8,139.65,139.64,7.83529543]
[1763647913766,1.8,139.65,139.64,7.13529543]
[1763647914079,1.8,139.65,139.64,7.83529543]
[1763647914245,2.38,139.65,139.58,18.82096]
[1763647914447,1.8,139.65,139.62,7.13529543]
[1763647914660,8.96075904,139.65,139.62,7.13529543]
[1763647914865,1.8,139.65,139.63,7.13529543]
[1763647915057,8.96077486,139.65,139.63,7.13529543]
[1763647915260,1.8,139.65,139.63,7.13529543]
[1763647915465,1.8,139.65,139.62,7.13529543]
[1763647915466,8.96082156,139.65,139.62,7.13529543]
[1763647916279,1.8,139.65,139.63,7.13529543]
[1763647916778,8.9608192,139.65,139.63,7.13529543]
[1763647917078,8.9608192,139.65,139.6,0.7]
[1763647917079,0.58,139.64,139.61,7.13529543]
[1763647917282,8.9608192,139.65,139.62,7.13529543]
[1763647917781,1.8,139.65,139.63,7.13529543]
[1763647917979,1.8,139.65,139.62,7.13529543]
[1763647918167,8.96079767,139.65,139.62,7.13529543]
[1763647918550,1.8,139.65,139.62,7.13529543]
[1763647918756,8.96086073,139.65,139.62,7.13529543]
[1763647919550,1.8,139.65,139.64,7.13529543]
[1763647920055,1.8,139.65,139.64,7.83529543]
[1763647920468,1.8,139.68,139.64,7.83529543]
[1763647920655,1.8,139.68,139.62,0.7]
[1763647920851,8.95938151,139.68,139.64,7.13529543]
[1763647921052,1.8,139.68,139.64,7.13529543]
[1763647921260,1.8,139.68,139.67,7.13529543]
[1763647921466,1.8,139.68,139.66,7.13529543]
[1763647921763,1.8,139.68,139.67,7.13529543]
[1763647921764,1.65501048,139.68,139.67,7.13529543]
[1763647922352,1.65501048,139.68,139.65,7.13529543]
[1763647922353,2.35501048,139.68,139.65,7.13529543]
[1763647922574,1.65501048,139.68,139.65,7.13529543]
[1763647923255,1.65501048,139.68,139.66,7.13529543]
[1763647923456,1.65501048,139.68,139.65,7.13529543]
[1763647923879,1.65501048,139.68,139.66,7.13529543]
[1763647924478,8.81425091,139.68,139.61,18.12096]
[1763647924688,7.13529543,139.65,139.52,7.13529543]
[1763647924990,7.16192806,139.63,139.58,7.13529543]
[1763647925269,7.16192806,139.63,139.54,0.7]
[1763647925270,7.85986808,139.67,139.62,7.13529543]
[1763647925470,1.8,139.66,139.63,7.13529543]
[1763647925677,9.63529543,139.66,139.61,7.13529543]
[1763647925883,2.5,139.66,139.6,0.7]
[1763647926052,1.8,139.66,139.64,7.13529543]
[1763647926254,0.7,139.69,139.65,7.13529543]
[1763647926448,1.8,139.68,139.61,0.7]
[1763647926874,1.8,139.68,139.66,7.13529543]
[1763647927287,0.2,139.74,139.67,7.83529543]
[1763647927492,7.13529543,139.71,139.66,7.13529543]
[1763647927870,0.7,139.7,139.66,7.13529543]
[1763647928268,0.7,139.7,139.67,7.13529543]
[1763647928485,1.8,139.69,139.64,7.13529543]
[1763647928690,1.8,139.69,139.6,7.83529543]
[1763647928691,8.93529543,139.69,139.63,7.13529543]
[1763647928988,1.8,139.69,139.65,7.13529543]
[1763647929290,2.5,139.69,139.65,7.13529543]
[1763647929589,0.7,139.68,139.65,7.13529543]
[1763647929804,0.7,139.71,139.67,7.13529543]
[1763647930021,1.8,139.7,139.68,7.13529543]
[1763647930364,0.7,139.69,139.61,18.12096]
[1763647930669,0.7,139.69,139.64,7.13529543]
[1763647930894,7.85902282,139.69,139.65,7.13529543]
[1763647931200,7.85902282,139.69,139.59,0.7]
[1763647931201,7.13529543,139.68,139.59,0.7]